{"text_format":"3","workbook":"xlsx","n_sheets":2,"sheets":["Začiatok","Osobný mesačný rozpočet"],"not_rendered":{"images":1},"read":"whole","date_system":"1900"}

{"sheet":"Začiatok","index":0,"n_rows":7,"n_cols":2,"rows_kept":7}
[null,"Informácie o tejto šablóne"]
[null,"Tento hárok osobného mesačného rozpočtu slúži na sledovanie predpokladaných a skutočných mesačných príjmov a predpokladaných a skutočných nákladov."]
[null,"Zadajte vzniknuté výdavky v rôznych kategóriách do príslušných tabuliek."]
[null,"Predpokladaný zostatok, skutočný zostatok a rozdiel sa vypočítajú automaticky."]
[null,"Poznámka: "]
[null,"V hárku OSOBNÝ MESAČNÝ ROZPOČET sú v stĺpci A uvedené ďalšie pokyny. Tento text je zámerne skrytý. Ak chcete text odstrániť, vyberte stĺpec A a potom stlačte kláves DELETE. Ak chcete text zobraziť, vyberte stĺpec A a potom zmeňte farbu písma."]
[null,"Ak chcete získať ďalšie informácie o tabuľkách v hárku, v tabuľke stlačte kláves SHIFT a potom kláves F10, vyberte možnosť TABUĽKA a potom vyberte položku ALTERNATÍVNY TEXT."]

{"sheet":"Osobný mesačný rozpočet","index":1,"n_rows":66,"n_cols":10,"rows_kept":66,"merged":[[3,1,3,2],[3,4,4,6],[3,7,4,7],[5,4,6,6],[5,7,6,7],[7,4,8,6],[7,7,8,7],[8,1,8,2],[24,6,24,9],[25,1,25,4],[33,6,33,9],[35,1,35,4],[40,6,40,9],[42,1,42,4],[46,6,46,9],[48,1,48,4],[52,6,52,9],[56,1,56,4],[59,6,59,9],[60,6,61,8],[60,9,61,9],[62,6,63,8],[62,9,63,9],[64,6,65,8],[64,9,65,9],[66,1,66,4]]}
["V tomto hárku vytvorte osobný mesačný rozpočet. V bunkách v tomto stĺpci sú užitočné pokyny na používanie tohto hárka. Začnite stlačením šípky nadol."]
["V bunke napravo sa nachádza nadpis tohto hárka. Ďalší pokyn je v bunke A5.",null,"Osobný mesačný rozpočet"]
[]
["V bunke napravo je označenie Predpokladaný mesačný príjem. Zadajte príjem 1 do bunky C5 a osobitné príjmy do bunky C6. Celkový mesačný príjem v bunke C7 sa vypočíta automaticky. Ďalší pokyn je v bunke A7.","Predpokladaný mesačný príjem",null,null,"Predpokladaný zostatok\n(predpokladaný príjem mínus náklady)",null,null,{"$f":"C7-J61","v":{"v":3405,"d":"3,405.00 EUR"}}]
[null,"Príjem 1",{"v":4300,"d":"4,300.00 EUR"}]
[null,"Osobitné príjmy",{"v":300,"d":"300.00 EUR"},null,"Skutočný zostatok\n(skutočný príjem mínus náklady)",null,null,{"$f":"C12-J63","v":{"v":3064,"d":"3,064.00 EUR"}}]
["Predpokladaný zostatok v bunke H4, skutočný zostatok v bunke H6 a rozdiel v bunke H8 sa vypočítajú automaticky. Ďalší pokyn je v bunke A9.","Mesačný príjem spolu",{"$f":"SUM(C5:C6)","v":{"v":4600,"d":"4,600.00 EUR"}}]
[{"$nulls":4},"Rozdiel\n(skutočné mínus predpokladané)",null,null,{"$f":"H6-H4","v":{"v":-341,"d":"-341.00 EUR"}}]
["V bunke napravo je označenie Skutočný mesačný príjem. Zadajte príjem 1 do bunky C10 a osobitné príjmy do bunky C11. Celkový mesačný príjem v bunke C12 sa vypočíta automaticky. Ďalší pokyn je v bunke A14.","Skutočný mesačný príjem"]
[null,"Príjem 1",{"v":4000,"d":"4,000.00 EUR"}]
[null,"Osobitné príjmy",{"v":300,"d":"300.00 EUR"}]
[null,"Mesačný príjem spolu",{"$f":"SUM(C10:C11)","v":{"v":4300,"d":"4,300.00 EUR"}}]
[]
["Zadajte podrobnosti do tabuľky Bývanie začínajúcej v bunke napravo a tabuľky Zábava začínajúcej v bunke G14. Ďalší pokyn je v bunke A27.","BÝVANIE","Predpokladané náklady","Skutočné náklady","Rozdiel",null,"ZÁBAVA","Predpokladané náklady","Skutočné náklady","Rozdiel"]
[null,"Hypotéka alebo nájomné",{"v":1000,"d":"1,000.00 EUR"},{"v":1000,"d":"1,000.00 EUR"},{"$f":"Byvanie[[#This Row],[Predpokladané náklady]]-Byvanie[[#This Row],[Skutočné náklady]]","v":{"v":0,"d":"0.00 EUR"}},null,"Video alebo DVD",null,null,{"$f":"Zabava[[#This Row],[Predpokladané náklady]]-Zabava[[#This Row],[Skutočné náklady]]","v":{"v":0,"d":"0.00 EUR"}}]
[null,"Telefón",{"v":54,"d":"54.00 EUR"},{"v":100,"d":"100.00 EUR"},{"$f":"Byvanie[[#This Row],[Predpokladané náklady]]-Byvanie[[#This Row],[Skutočné náklady]]","v":{"v":-46,"d":"-46.00 EUR"}},null,"CD nosiče",null,null,{"$f":"Zabava[[#This Row],[Predpokladané náklady]]-Zabava[[#This Row],[Skutočné náklady]]","v":{"v":0,"d":"0.00 EUR"}}]
[null,"Elektrina",{"v":44,"d":"44.00 EUR"},{"v":56,"d":"56.00 EUR"},{"$f":"Byvanie[[#This Row],[Predpokladané náklady]]-Byvanie[[#This Row],[Skutočné náklady]]","v":{"v":-12,"d":"-12.00 EUR"}},null,"Filmy",null,null,{"$f":"Zabava[[#This Row],[Predpokladané náklady]]-Zabava[[#This Row],[Skutočné náklady]]","v":{"v":0,"d":"0.00 EUR"}}]
[null,"Plyn",{"v":22,"d":"22.00 EUR"},{"v":28,"d":"28.00 EUR"},{"$f":"Byvanie[[#This Row],[Predpokladané náklady]]-Byvanie[[#This Row],[Skutočné náklady]]","v":{"v":-6,"d":"-6.00 EUR"}},null,"Koncerty",null,null,{"$f":"Zabava[[#This Row],[Predpokladané náklady]]-Zabava[[#This Row],[Skutočné náklady]]","v":{"v":0,"d":"0.00 EUR"}}]
[null,"Vodné a stočné",{"v":8,"d":"8.00 EUR"},{"v":8,"d":"8.00 EUR"},{"$f":"Byvanie[[#This Row],[Predpokladané náklady]]-Byvanie[[#This Row],[Skutočné náklady]]","v":{"v":0,"d":"0.00 EUR"}},null,"Športové podujatia",null,null,{"$f":"Zabava[[#This Row],[Predpokladané náklady]]-Zabava[[#This Row],[Skutočné náklady]]","v":{"v":0,"d":"0.00 EUR"}}]
[null,"Káblová televízia",{"v":34,"d":"34.00 EUR"},{"v":34,"d":"34.00 EUR"},{"$f":"Byvanie[[#This Row],[Predpokladané náklady]]-Byvanie[[#This Row],[Skutočné náklady]]","v":{"v":0,"d":"0.00 EUR"}},null,"Divadlo",null,null,{"$f":"Zabava[[#This Row],[Predpokladané náklady]]-Zabava[[#This Row],[Skutočné náklady]]","v":{"v":0,"d":"0.00 EUR"}}]
[null,"Odvoz odpadu",{"v":10,"d":"10.00 EUR"},{"v":10,"d":"10.00 EUR"},{"$f":"Byvanie[[#This Row],[Predpokladané náklady]]-Byvanie[[#This Row],[Skutočné náklady]]","v":{"v":0,"d":"0.00 EUR"}},null,"Iné",null,null,{"$f":"Zabava[[#This Row],[Predpokladané náklady]]-Zabava[[#This Row],[Skutočné náklady]]","v":{"v":0,"d":"0.00 EUR"}}]
[null,"Údržba alebo opravy",{"v":23,"d":"23.00 EUR"},{"v":0,"d":"0.00 EUR"},{"$f":"Byvanie[[#This Row],[Predpokladané náklady]]-Byvanie[[#This Row],[Skutočné náklady]]","v":{"v":23,"d":"23.00 EUR"}},null,"Iné",null,null,{"$f":"Zabava[[#This Row],[Predpokladané náklady]]-Zabava[[#This Row],[Skutočné náklady]]","v":{"v":0,"d":"0.00 EUR"}}]
[null,"Zásoby",{"v":0,"d":"0.00 EUR"},{"v":0,"d":"0.00 EUR"},{"$f":"Byvanie[[#This Row],[Predpokladané náklady]]-Byvanie[[#This Row],[Skutočné náklady]]","v":{"v":0,"d":"0.00 EUR"}},null,"Iné",null,null,{"$f":"Zabava[[#This Row],[Predpokladané náklady]]-Zabava[[#This Row],[Skutočné náklady]]","v":{"v":0,"d":"0.00 EUR"}}]
[null,"Iné",{"v":0,"d":"0.00 EUR"},{"v":0,"d":"0.00 EUR"},{"$f":"Byvanie[[#This Row],[Predpokladané náklady]]-Byvanie[[#This Row],[Skutočné náklady]]","v":{"v":0,"d":"0.00 EUR"}},null,"Medzisúčet",null,null,{"$f":"SUBTOTAL(109,Zabava[Rozdiel])","v":{"v":0,"d":"0.00 EUR"}}]
[null,"Medzisúčet",null,null,{"$f":"SUBTOTAL(109,Byvanie[Rozdiel])","v":{"v":-41,"d":"-41.00 EUR"}}]
[{"$nulls":6},"PÔŽIČKY","Predpokladané náklady","Skutočné náklady","Rozdiel"]
["Zadajte podrobnosti do tabuľky Doprava začínajúcej v bunke napravo a tabuľky Pôžičky začínajúcej v bunke G26. Ďalší pokyn je v bunke A37.","DOPRAVA","Predpokladané náklady","Skutočné náklady","Rozdiel",null,"Osobné",null,null,{"$f":"Pozicky[[#This Row],[Predpokladané náklady]]-Pozicky[[#This Row],[Skutočné náklady]]","v":{"v":0,"d":"0.00 EUR"}}]
[null,"Platba za vozidlo",null,null,{"$f":"Doprava[[#This Row],[Predpokladané náklady]]-Doprava[[#This Row],[Skutočné náklady]]","v":{"v":0,"d":"0.00 EUR"}},null,"Študentské",null,null,{"$f":"Pozicky[[#This Row],[Predpokladané náklady]]-Pozicky[[#This Row],[Skutočné náklady]]","v":{"v":0,"d":"0.00 EUR"}}]
[null,"Cestovné za autobus alebo taxi",null,null,{"$f":"Doprava[[#This Row],[Predpokladané náklady]]-Doprava[[#This Row],[Skutočné náklady]]","v":{"v":0,"d":"0.00 EUR"}},null,"Kreditná karta",null,null,{"$f":"Pozicky[[#This Row],[Predpokladané náklady]]-Pozicky[[#This Row],[Skutočné náklady]]","v":{"v":0,"d":"0.00 EUR"}}]
[null,"Poistenie",null,null,{"$f":"Doprava[[#This Row],[Predpokladané náklady]]-Doprava[[#This Row],[Skutočné náklady]]","v":{"v":0,"d":"0.00 EUR"}},null,"Kreditná karta",null,null,{"$f":"Pozicky[[#This Row],[Predpokladané náklady]]-Pozicky[[#This Row],[Skutočné náklady]]","v":{"v":0,"d":"0.00 EUR"}}]
[null,"Úradné poplatky",null,null,{"$f":"Doprava[[#This Row],[Predpokladané náklady]]-Doprava[[#This Row],[Skutočné náklady]]","v":{"v":0,"d":"0.00 EUR"}},null,"Kreditná karta",null,null,{"$f":"Pozicky[[#This Row],[Predpokladané náklady]]-Pozicky[[#This Row],[Skutočné náklady]]","v":{"v":0,"d":"0.00 EUR"}}]
[null,"Pohonné hmoty",null,null,{"$f":"Doprava[[#This Row],[Predpokladané náklady]]-Doprava[[#This Row],[Skutočné náklady]]","v":{"v":0,"d":"0.00 EUR"}},null,"Iné",null,null,{"$f":"Pozicky[[#This Row],[Predpokladané náklady]]-Pozicky[[#This Row],[Skutočné náklady]]","v":{"v":0,"d":"0.00 EUR"}}]
[null,"Údržba",null,null,{"$f":"Doprava[[#This Row],[Predpokladané náklady]]-Doprava[[#This Row],[Skutočné náklady]]","v":{"v":0,"d":"0.00 EUR"}},null,"Medzisúčet",null,null,{"$f":"SUBTOTAL(109,Pozicky[Rozdiel])","v":{"v":0,"d":"0.00 EUR"}}]
[null,"Iné",null,null,{"$f":"Doprava[[#This Row],[Predpokladané náklady]]-Doprava[[#This Row],[Skutočné náklady]]","v":{"v":0,"d":"0.00 EUR"}}]
[null,"Medzisúčet",null,null,{"$f":"SUBTOTAL(109,Doprava[Rozdiel])","v":{"v":0,"d":"0.00 EUR"}},null,"DANE","Predpokladané náklady","Skutočné náklady","Rozdiel"]
[{"$nulls":6},"Zahraničné",null,null,{"$f":"Dane[[#This Row],[Predpokladané náklady]]-Dane[[#This Row],[Skutočné náklady]]","v":{"v":0,"d":"0.00 EUR"}}]
["Zadajte podrobnosti do tabuľky Poistenie začínajúcej v bunke napravo a tabuľky Dane začínajúcej v bunke G35. Ďalší pokyn je v bunke A44.","POISTENIE","Predpokladané náklady","Skutočné náklady","Rozdiel",null,"Štátne",null,null,{"$f":"Dane[[#This Row],[Predpokladané náklady]]-Dane[[#This Row],[Skutočné náklady]]","v":{"v":0,"d":"0.00 EUR"}}]
[null,"Domácnosť",null,null,{"$f":"Poistenie[[#This Row],[Predpokladané náklady]]-Poistenie[[#This Row],[Skutočné náklady]]","v":{"v":0,"d":"0.00 EUR"}},null,"Miestne",null,null,{"$f":"Dane[[#This Row],[Predpokladané náklady]]-Dane[[#This Row],[Skutočné náklady]]","v":{"v":0,"d":"0.00 EUR"}}]
[null,"Zdravotné",null,null,{"$f":"Poistenie[[#This Row],[Predpokladané náklady]]-Poistenie[[#This Row],[Skutočné náklady]]","v":{"v":0,"d":"0.00 EUR"}},null,"Iné",null,null,{"$f":"Dane[[#This Row],[Predpokladané náklady]]-Dane[[#This Row],[Skutočné náklady]]","v":{"v":0,"d":"0.00 EUR"}}]
[null,"Život",null,null,{"$f":"Poistenie[[#This Row],[Predpokladané náklady]]-Poistenie[[#This Row],[Skutočné náklady]]","v":{"v":0,"d":"0.00 EUR"}},null,"Medzisúčet",null,null,{"$f":"SUBTOTAL(109,Dane[Rozdiel])","v":{"v":0,"d":"0.00 EUR"}}]
[null,"Iné",null,null,{"$f":"Poistenie[[#This Row],[Predpokladané náklady]]-Poistenie[[#This Row],[Skutočné náklady]]","v":{"v":0,"d":"0.00 EUR"}}]
[null,"Medzisúčet",null,null,{"$f":"SUBTOTAL(109,Poistenie[Rozdiel])","v":{"v":0,"d":"0.00 EUR"}},null,"ÚSPORY ALEBO INVESTÍCIE","Predpokladané náklady","Skutočné náklady","Rozdiel"]
[{"$nulls":6},"Dôchodkový účet",null,null,{"$f":"Uspory[[#This Row],[Predpokladané náklady]]-Uspory[[#This Row],[Skutočné náklady]]","v":{"v":0,"d":"0.00 EUR"}}]
["Zadajte podrobnosti do tabuľky Strava začínajúcej v bunke napravo a tabuľky Úspory začínajúcej v bunke G42. Ďalší pokyn je v bunke A50.","STRAVA","Predpokladané náklady","Skutočné náklady","Rozdiel",null,"Investičný účet",null,null,{"$f":"Uspory[[#This Row],[Predpokladané náklady]]-Uspory[[#This Row],[Skutočné náklady]]","v":{"v":0,"d":"0.00 EUR"}}]
[null,"Potraviny",null,null,{"$f":"Strava[[#This Row],[Predpokladané náklady]]-Strava[[#This Row],[Skutočné náklady]]","v":{"v":0,"d":"0.00 EUR"}},null,"Iné",null,null,{"$f":"Uspory[[#This Row],[Predpokladané náklady]]-Uspory[[#This Row],[Skutočné náklady]]","v":{"v":0,"d":"0.00 EUR"}}]
[null,"Reštaurácie",null,null,{"$f":"Strava[[#This Row],[Predpokladané náklady]]-Strava[[#This Row],[Skutočné náklady]]","v":{"v":0,"d":"0.00 EUR"}},null,"Medzisúčet",null,null,{"$f":"SUBTOTAL(109,Uspory[Rozdiel])","v":{"v":0,"d":"0.00 EUR"}}]
[null,"Iné",null,null,{"$f":"Strava[[#This Row],[Predpokladané náklady]]-Strava[[#This Row],[Skutočné náklady]]","v":{"v":0,"d":"0.00 EUR"}}]
[null,"Medzisúčet",null,null,{"$f":"SUBTOTAL(109,Strava[Rozdiel])","v":{"v":0,"d":"0.00 EUR"}},null,"DARY A PRÍSPEVKY","Predpokladané náklady","Skutočné náklady","Rozdiel"]
[{"$nulls":6},"Charita 1",null,null,{"$f":"Dary[[#This Row],[Predpokladané náklady]]-Dary[[#This Row],[Skutočné náklady]]","v":{"v":0,"d":"0.00 EUR"}}]
["Zadajte podrobnosti do tabuľky Domáce zvieratá začínajúcej v bunke napravo a tabuľky Dary začínajúcej v bunke G48. Ďalší pokyn je v bunke A58.","DOMÁCE ZVIERATÁ","Predpokladané náklady","Skutočné náklady","Rozdiel",null,"Charita 2",null,null,{"$f":"Dary[[#This Row],[Predpokladané náklady]]-Dary[[#This Row],[Skutočné náklady]]","v":{"v":0,"d":"0.00 EUR"}}]
[null,"Strava",null,null,{"$f":"Domace_zvierata[[#This Row],[Predpokladané náklady]]-Domace_zvierata[[#This Row],[Skutočné náklady]]","v":{"v":0,"d":"0.00 EUR"}},null,"Charita 3",null,null,{"$f":"Dary[[#This Row],[Predpokladané náklady]]-Dary[[#This Row],[Skutočné náklady]]","v":{"v":0,"d":"0.00 EUR"}}]
[null,"Zdravie",null,null,{"$f":"Domace_zvierata[[#This Row],[Predpokladané náklady]]-Domace_zvierata[[#This Row],[Skutočné náklady]]","v":{"v":0,"d":"0.00 EUR"}},null,"Medzisúčet",null,null,{"$f":"SUBTOTAL(109,Dary[Rozdiel])","v":{"v":0,"d":"0.00 EUR"}}]
[null,"Starostlivosť o výzor",null,null,{"$f":"Domace_zvierata[[#This Row],[Predpokladané náklady]]-Domace_zvierata[[#This Row],[Skutočné náklady]]","v":{"v":0,"d":"0.00 EUR"}}]
[null,"Hračky",null,null,{"$f":"Domace_zvierata[[#This Row],[Predpokladané náklady]]-Domace_zvierata[[#This Row],[Skutočné náklady]]","v":{"v":0,"d":"0.00 EUR"}},null,"PRÁVNE POPLATKY","Predpokladané náklady","Skutočné náklady","Rozdiel"]
[null,"Iné",null,null,{"$f":"Domace_zvierata[[#This Row],[Predpokladané náklady]]-Domace_zvierata[[#This Row],[Skutočné náklady]]","v":{"v":0,"d":"0.00 EUR"}},null,"Právnik",null,null,{"$f":"Pravne_poplatky[[#This Row],[Predpokladané náklady]]-Pravne_poplatky[[#This Row],[Skutočné náklady]]","v":{"v":0,"d":"0.00 EUR"}}]
[null,"Medzisúčet",null,null,{"$f":"SUBTOTAL(109,Domace_zvierata[Rozdiel])","v":{"v":0,"d":"0.00 EUR"}},null,"Výživné",null,null,{"$f":"Pravne_poplatky[[#This Row],[Predpokladané náklady]]-Pravne_poplatky[[#This Row],[Skutočné náklady]]","v":{"v":0,"d":"0.00 EUR"}}]
[{"$nulls":6},"Záložné právo alebo rozsudok",null,null,{"$f":"Pravne_poplatky[[#This Row],[Predpokladané náklady]]-Pravne_poplatky[[#This Row],[Skutočné náklady]]","v":{"v":0,"d":"0.00 EUR"}}]
["Zadajte podrobnosti do tabuľky Osobná starostlivosť začínajúcej v bunke napravo a tabuľky Právne poplatky začínajúcej v bunke G54. Ďalší pokyn je v bunke A61.","OSOBNÁ STAROSTLIVOSŤ","Predpokladané náklady","Skutočné náklady","Rozdiel",null,"Iné",null,null,{"$f":"Pravne_poplatky[[#This Row],[Predpokladané náklady]]-Pravne_poplatky[[#This Row],[Skutočné náklady]]","v":{"v":0,"d":"0.00 EUR"}}]
[null,"Zdravie",null,null,{"$f":"Osobna_starostlivost[[#This Row],[Predpokladané náklady]]-Osobna_starostlivost[[#This Row],[Skutočné náklady]]","v":{"v":0,"d":"0.00 EUR"}},null,"Medzisúčet",null,null,{"$f":"SUBTOTAL(109,Pravne_poplatky[Rozdiel])","v":{"v":0,"d":"0.00 EUR"}}]
[null,"Kaderníctvo a manikúra",null,null,{"$f":"Osobna_starostlivost[[#This Row],[Predpokladané náklady]]-Osobna_starostlivost[[#This Row],[Skutočné náklady]]","v":{"v":0,"d":"0.00 EUR"}}]
["Celkové predpokladané náklady v bunke J61, celkové skutočné náklady v bunke J63 a celkový rozdiel v bunke J65 sa vypočítajú automaticky.","Oblečenie",null,null,{"$f":"Osobna_starostlivost[[#This Row],[Predpokladané náklady]]-Osobna_starostlivost[[#This Row],[Skutočné náklady]]","v":{"v":0,"d":"0.00 EUR"}},null,"Predpokladané náklady spolu",null,null,{"$f":"SUBTOTAL(109,Byvanie[Predpokladané náklady],Doprava[Predpokladané náklady],Poistenie[Predpokladané náklady],Strava[Predpokladané náklady],Domace_zvierata[Predpokladané náklady],Osobna_starostlivost[Predpokladané náklady],Zabava[Predpokladané náklady],Pozicky[Predpokladané náklady],Dane[Predpokladané náklady],Uspory[Predpokladané náklady],Dary[Predpokladané náklady],Pravne_poplatky[Predpokladané náklady])","v":{"v":1195,"d":"1,195.00 EUR"}}]
[null,"Čistiareň",null,null,{"$f":"Osobna_starostlivost[[#This Row],[Predpokladané náklady]]-Osobna_starostlivost[[#This Row],[Skutočné náklady]]","v":{"v":0,"d":"0.00 EUR"}}]
[null,"Zdravotný klub",null,null,{"$f":"Osobna_starostlivost[[#This Row],[Predpokladané náklady]]-Osobna_starostlivost[[#This Row],[Skutočné náklady]]","v":{"v":0,"d":"0.00 EUR"}},null,"Skutočné náklady spolu",null,null,{"$f":"SUBTOTAL(109,Byvanie[Skutočné náklady],Doprava[Skutočné náklady],Poistenie[Skutočné náklady],Strava[Skutočné náklady],Domace_zvierata[Skutočné náklady],Osobna_starostlivost[Skutočné náklady],Zabava[Skutočné náklady],Pozicky[Skutočné náklady],Dane[Skutočné náklady],Uspory[Skutočné náklady],Dary[Skutočné náklady],Pravne_poplatky[Skutočné náklady])","v":{"v":1236,"d":"1,236.00 EUR"}}]
[null,"Príspevky alebo poplatky organizáciám",null,null,{"$f":"Osobna_starostlivost[[#This Row],[Predpokladané náklady]]-Osobna_starostlivost[[#This Row],[Skutočné náklady]]","v":{"v":0,"d":"0.00 EUR"}}]
[null,"Iné",null,null,{"$f":"Osobna_starostlivost[[#This Row],[Predpokladané náklady]]-Osobna_starostlivost[[#This Row],[Skutočné náklady]]","v":{"v":0,"d":"0.00 EUR"}},null,"Rozdiel spolu",null,null,{"$f":"J61-J63","v":{"v":-41,"d":"-41.00 EUR"}}]
[null,"Medzisúčet",null,null,{"$f":"SUBTOTAL(109,Osobna_starostlivost[Rozdiel])","v":{"v":0,"d":"0.00 EUR"}}]